[Event "FIDE Women World Blitz 2021"]
[Site "Warsaw"]
[Date "2021.12.30"]
[Round "15.20"]
[White "Batsiashvili, Nino"]
[Black "Atalik, Ekaterina"]
[Result "1-0"]
[ECO "A13"]
[WhiteElo "2491"]
[BlackElo "2430"]
[Annotator "ChessBase"]
[PlyCount "93"]
[EventDate "2021.12.29"]
[EventType "swiss"]
[EventCountry "POL"]
[Tiebreak "Cut1 Buchholz"]
[SourceTitle "playchess.com"]
[Source "ChessBase"]
[SourceQuality "1"]
[TimeControl "180+2"]

1. c4 {[%emt 0:00:01]} e6 {[%emt 0:00:01]} 2. Nf3 {[%emt 0:00:02]} d5 {[%emt 0:
00:02]} 3. g3 {[%emt 0:00:01]} dxc4 {[%emt 0:00:02]} 4. Bg2 {[%emt 0:00:01]}
Bd7 {[%emt 0:00:05]} 5. Ne5 {[%emt 0:00:10]} Bc6 {[%emt 0:00:01]} 6. Nxc6 {
[%emt 0:00:02]} Nxc6 {[%emt 0:00:01]} 7. Qa4 {[%emt 0:00:11]} Qd7 {[%emt 0:00:
02]} 8. Qxc4 {[%emt 0:00:09]} Nf6 {[%emt 0:00:02]} 9. O-O {[%emt 0:00:07]} Nd5
{[%emt 0:00:04]} 10. d3 {[%emt 0:00:30]} Be7 {[%emt 0:00:05]} 11. Nd2 {[%emt 0:
00:08]} O-O {[%emt 0:00:12]} 12. Nb3 {[%emt 0:00:07]} b6 {[%emt 0:00:08]} 13.
Bd2 {[%emt 0:00:07]} Ne5 {[%emt 0:00:09]} 14. Qc2 {[%emt 0:00:16]} c5 {[%emt 0:
00:08]} 15. Rfd1 {[%emt 0:00:06]} Nc6 {[%emt 0:00:02]} 16. Rac1 {[%emt 0:00:06]
} Rac8 {[%emt 0:00:06]} 17. a3 {[%emt 0:00:08]} Rfd8 {[%emt 0:00:06]} 18. e3 {
[%emt 0:00:17]} Bf6 {[%emt 0:00:07]} 19. Be1 {[%emt 0:00:01]} g6 {[%emt 0:00:
11]} 20. Nd2 {[%emt 0:00:02]} Bg7 {[%emt 0:00:04]} 21. Ne4 {[%emt 0:00:09]} f5
{[%emt 0:00:04]} 22. Nc3 {[%emt 0:00:01]} Nce7 {[%emt 0:00:07]} 23. e4 {
[%emt 0:00:09]} Nxc3 {[%emt 0:00:05]} 24. bxc3 {[%emt 0:00:13]} Nc6 25. Qe2 {
[%emt 0:00:06]} Qf7 {[%emt 0:00:13]} 26. Bd2 {[%emt 0:00:05]} h6 {[%emt 0:00:
04]} 27. Be3 {[%emt 0:00:02]} Kh7 {[%emt 0:00:11]} 28. h4 {[%emt 0:00:11]} Na5
{[%emt 0:00:14]} 29. d4 {[%emt 0:00:06]} cxd4 {[%emt 0:00:04]} 30. Bxd4 {
[%emt 0:00:07]} Bxd4 {[%emt 0:00:13]} 31. cxd4 {[%emt 0:00:01]} Rxc1 {[%emt 0:
00:04]} 32. Rxc1 Rxd4 {[%emt 0:00:02]} 33. exf5 {[%emt 0:00:01]} gxf5 {[%emt 0:
00:12]} 34. Re1 {[%emt 0:00:12]} Rd6 {[%emt 0:00:07]} 35. Qe5 {[%emt 0:00:04]}
Nc4 {[%emt 0:00:10]} 36. Qf4 {[%emt 0:00:01]} b5 {[%emt 0:00:02]} 37. Bf1 {
[%emt 0:00:04]} Rc6 {[%emt 0:00:05]} 38. Rd1 {[%emt 0:00:05]} Rc7 {[%emt 0:00:
10]} 39. Rd8 {[%emt 0:00:04]} e5 {[%emt 0:00:07]} 40. Qf3 {[%emt 0:00:03]} Nd2
{[%emt 0:00:10]} 41. Qa8 {[%emt 0:00:02]} Nxf1 {[%emt 0:00:07]} 42. Kxf1 {
[%emt 0:00:01]} Rc1+ {[%emt 0:00:06]} 43. Kg2 {[%emt 0:00:01]} Rc7 {[%emt 0:00:
02]} 44. Qb8 {[%emt 0:00:03]} Re7 {[%emt 0:00:03]} 45. Qc8 {[%emt 0:00:01]} Kg7
{[%emt 0:00:04]} 46. h5 {[%emt 0:00:02]} Kf6 {[%emt 0:00:03]} 47. Rf8 {[%emt 0:
00:01]} 1-0

[Event "FIDE Women World Blitz 2021"]
[Site "Warsaw"]
[Date "2021.12.30"]
[Round "15.21"]
[White "Padmini, Rout"]
[Black "Lach, Aleksandra"]
[Result "1-0"]
[ECO "B27"]
[WhiteElo "2353"]
[BlackElo "2204"]
[Annotator "NA"]
[PlyCount "75"]
[EventDate "2021.12.29"]
[EventType "swiss"]
[EventCountry "POL"]
[Tiebreak "Cut1 Buchholz"]
[SourceTitle "playchess.com"]
[Source "ChessBase"]
[SourceQuality "1"]
[TimeControl "180+2"]

1. e4 {[%emt 0:00:02]} c5 {[%emt 0:00:00]} 2. Nf3 {[%emt 0:00:02]} g6 {[%emt 0:
00:01]} 3. c3 {[%emt 0:00:04]} Bg7 {[%emt 0:00:01]} 4. d4 {[%emt 0:00:01]} cxd4
{[%emt 0:00:01]} 5. cxd4 {[%emt 0:00:01]} d5 {[%emt 0:00:01]} 6. e5 {[%emt 0:
00:01]} Bg4 {[%emt 0:00:01]} 7. Nc3 {[%emt 0:00:05]} e6 {[%emt 0:00:16]} 8. Nb5
{[%emt 0:00:12]} Bf8 {[%emt 0:00:08]} 9. h3 {[%emt 0:00:51]} Bxf3 {[%emt 0:00:
13]} 10. Qxf3 {[%emt 0:00:02]} a6 {[%emt 0:00:09]} 11. Nc3 {[%emt 0:00:01]} Nc6
{[%emt 0:00:01]} 12. Be3 {[%emt 0:00:15]} Bg7 {[%emt 0:00:05]} 13. h4 {[%emt 0:
00:18]} h5 {[%emt 0:00:08]} 14. Bd3 {[%emt 0:00:06]} Nh6 {[%emt 0:00:28]} 15.
Ne2 {[%emt 0:00:05]} Qa5+ {[%emt 0:00:12]} 16. Bd2 {[%emt 0:00:02]} Qb6 {
[%emt 0:00:01]} 17. Bc3 {[%emt 0:00:01]} O-O {[%emt 0:00:08]} 18. O-O {[%emt 0:
00:03]} Qd8 {[%emt 0:00:16]} 19. g3 {[%emt 0:00:02]} b5 {[%emt 0:00:02]} 20. a3
{[%emt 0:00:05]} Rb8 {[%emt 0:00:01]} 21. Kg2 {[%emt 0:00:05]} Ng4 {[%emt 0:00:
18]} 22. Nc1 {[%emt 0:00:38]} f6 {[%emt 0:00:27]} 23. exf6 {[%emt 0:00:04]}
Rxf6 {[%emt 0:00:03]} 24. Qe2 {[%emt 0:00:03]} Qe8 {[%emt 0:00:08]} 25. Nb3 {
[%emt 0:00:04]} Nh6 {[%emt 0:00:13]} 26. Nc5 {[%emt 0:00:07]} Nf5 {[%emt 0:00:
01]} 27. Nxa6 {[%emt 0:00:02]} Rb7 {[%emt 0:00:08]} 28. Bxf5 {[%emt 0:00:12]}
Rxf5 {[%emt 0:00:02]} 29. Rad1 {[%emt 0:00:01]} Nd8 {[%emt 0:00:19]} 30. Rfe1 {
[%emt 0:00:06]} Re7 {[%emt 0:00:01]} 31. Nc5 {[%emt 0:00:03]} Kh7 {[%emt 0:00:
01]} 32. Nd3 {[%emt 0:00:03]} Nf7 {[%emt 0:00:01]} 33. Nf4 {[%emt 0:00:03]} Nd6
{[%emt 0:00:05]} 34. Bb4 {[%emt 0:00:03]} Qd7 {[%emt 0:00:05]} 35. Nxe6 {
[%emt 0:00:05]} Rf6 {[%emt 0:00:04]} 36. Ng5+ {[%emt 0:00:01]} Kg8 {[%emt 0:00:
01]} 37. Qxe7 {[%emt 0:00:02]} Qxe7 {[%emt 0:00:00]} 38. Rxe7 {[%emt 0:00:02]}
1-0

[Event "FIDE Women World Blitz 2021"]
[Site "Warsaw"]
[Date "2021.12.30"]
[Round "15.22"]
[White "Semenova, Elena"]
[Black "Majdan, Joanna"]
[Result "1/2-1/2"]
[ECO "B22"]
[WhiteElo "2233"]
[BlackElo "2325"]
[Annotator "NA"]
[PlyCount "78"]
[EventDate "2021.12.29"]
[EventType "swiss"]
[EventCountry "POL"]
[Tiebreak "Cut1 Buchholz"]
[SourceTitle "playchess.com"]
[Source "ChessBase"]
[SourceQuality "1"]
[TimeControl "180+2"]

1. e4 {[%emt 0:00:01]} c5 {[%emt 0:00:00]} 2. Nf3 {[%emt 0:00:01]} e6 {[%emt 0:
00:01]} 3. c3 {[%emt 0:00:01]} Nf6 {[%emt 0:00:06]} 4. e5 {[%emt 0:00:03]} Nd5
5. d4 cxd4 {[%emt 0:00:02]} 6. cxd4 {[%emt 0:00:01]} d6 {[%emt 0:00:02]} 7. Be2
{[%emt 0:00:02]} Nc6 {[%emt 0:00:01]} 8. O-O {[%emt 0:00:02]} Be7 {[%emt 0:00:
01]} 9. Bd2 {[%emt 0:00:03]} O-O {[%emt 0:00:03]} 10. Nc3 {[%emt 0:00:00]} Nxc3
{[%emt 0:00:02]} 11. Bxc3 {[%emt 0:00:01]} dxe5 {[%emt 0:00:03]} 12. dxe5 {
[%emt 0:00:02]} Qb6 {[%emt 0:00:03]} 13. Bd3 {[%emt 0:00:12]} Rd8 {[%emt 0:00:
07]} 14. Qe2 {[%emt 0:00:01]} Bf8 {[%emt 0:00:12]} 15. Rfd1 {[%emt 0:00:13]} g6
{[%emt 0:00:09]} 16. Ng5 {[%emt 0:00:08]} Bg7 {[%emt 0:00:03]} 17. Qf3 {
[%emt 0:00:17]} Qc7 {[%emt 0:00:04]} 18. Rac1 {[%emt 0:00:10]} Qe7 {[%emt 0:00:
07]} 19. Ne4 {[%emt 0:00:08]} Nxe5 {[%emt 0:00:02]} 20. Qg3 {[%emt 0:00:33]}
Nxd3 {[%emt 0:00:10]} 21. Rxd3 {[%emt 0:00:00]} Rxd3 {[%emt 0:00:18]} 22. Qxd3
{[%emt 0:00:02]} e5 {[%emt 0:00:04]} 23. Qd6 {[%emt 0:00:22]} Qxd6 {[%emt 0:00:
13]} 24. Nxd6 {[%emt 0:00:01]} Be6 {[%emt 0:00:01]} 25. Nxb7 {[%emt 0:00:06]}
Bxa2 {[%emt 0:00:03]} 26. Ra1 {[%emt 0:00:05]} Bd5 {[%emt 0:00:04]} 27. Nc5 {
[%emt 0:00:08]} Rc8 {[%emt 0:00:09]} 28. b4 {[%emt 0:00:07]} Rc7 {[%emt 0:00:
12]} 29. Rd1 {[%emt 0:00:02]} Be6 {[%emt 0:00:21]} 30. Rd8+ {[%emt 0:00:01]}
Bf8 {[%emt 0:00:01]} 31. Bxe5 {[%emt 0:00:04]} Rc6 {[%emt 0:00:02]} 32. h4 {
[%emt 0:00:19]} h5 {[%emt 0:00:31]} 33. Ne4 {[%emt 0:00:08]} f5 {[%emt 0:00:15]
} 34. Nc5 {[%emt 0:00:16]} Bc8 {[%emt 0:00:06]} 35. b5 {[%emt 0:00:17]} Rxc5 {
[%emt 0:00:03]} 36. Rxf8+ {[%emt 0:00:02]} Kxf8 {[%emt 0:00:01]} 37. Bd6+ {
[%emt 0:00:00]} Ke8 {[%emt 0:00:02]} 38. Bxc5 {[%emt 0:00:01]} Bd7 {[%emt 0:00:
00]} 39. Bxa7 {[%emt 0:00:01]} Bxb5 {[%emt 0:00:01]} 1/2-1/2

[Event "FIDE Women World Blitz 2021"]
[Site "Warsaw"]
[Date "2021.12.30"]
[Round "15.23"]
[White "Serikbay, Assel"]
[Black "Mamedjarova, Turkan"]
[Result "0-1"]
[ECO "E01"]
[WhiteElo "2237"]
[BlackElo "2264"]
[Annotator "NA"]
[PlyCount "110"]
[EventDate "2021.12.29"]
[EventType "swiss"]
[EventCountry "POL"]
[Tiebreak "Cut1 Buchholz"]
[SourceTitle "playchess.com"]
[Source "ChessBase"]
[SourceQuality "1"]
[TimeControl "180+2"]

1. d4 {[%emt 0:00:01]} Nf6 {[%emt 0:00:01]} 2. c4 {[%emt 0:00:01]} e6 {[%emt 0:
00:01]} 3. g3 {[%emt 0:00:01]} b6 {[%emt 0:00:02]} 4. Bg2 {[%emt 0:00:02]} c6 {
[%emt 0:00:03]} 5. Nc3 {[%emt 0:00:03]} d5 {[%emt 0:00:04]} 6. Nf3 {[%emt 0:00:
02]} Bd6 {[%emt 0:00:08]} 7. O-O {[%emt 0:00:03]} O-O {[%emt 0:00:01]} 8. Qc2 {
[%emt 0:00:03]} Nbd7 {[%emt 0:00:04]} 9. e4 {[%emt 0:00:03]} dxe4 {[%emt 0:00:
21]} 10. Nxe4 {[%emt 0:00:02]} Nxe4 {[%emt 0:00:09]} 11. Qxe4 {[%emt 0:00:01]}
Bb7 {[%emt 0:00:08]} 12. Rd1 {[%emt 0:00:09]} h6 {[%emt 0:00:04]} 13. b3 {
[%emt 0:00:05]} Qc7 {[%emt 0:00:06]} 14. Bb2 {[%emt 0:00:09]} Rad8 {[%emt 0:00:
04]} 15. a4 {[%emt 0:01:10]} Rfe8 {[%emt 0:00:13]} 16. a5 {[%emt 0:00:05]} c5 {
[%emt 0:00:27]} 17. Qc2 {[%emt 0:00:07]} cxd4 {[%emt 0:00:16]} 18. Bxd4 {
[%emt 0:00:02]} e5 {[%emt 0:00:01]} 19. Bb2 {[%emt 0:00:01]} Bc5 {[%emt 0:00:
06]} 20. Qf5 {[%emt 0:00:19]} g6 {[%emt 0:00:11]} 21. Qh3 {[%emt 0:00:02]} Nf6
{[%emt 0:00:11]} 22. Rxd8 {[%emt 0:00:04]} Qxd8 {[%emt 0:00:04]} 23. Rf1 {
[%emt 0:00:39]} e4 {[%emt 0:00:27]} 24. Ne5 {[%emt 0:00:05]} Bd4 {[%emt 0:00:
03]} 25. Bxd4 {[%emt 0:00:10]} Qxd4 {[%emt 0:00:01]} 26. Ng4 {[%emt 0:00:04]}
Nxg4 {[%emt 0:00:05]} 27. Qxg4 {[%emt 0:00:01]} Qd3 {[%emt 0:00:04]} 28. Qf4 {
[%emt 0:00:01]} Qxb3 {[%emt 0:00:06]} 29. axb6 {[%emt 0:00:02]} axb6 {[%emt 0:
00:01]} 30. Qc7 {[%emt 0:00:02]} Ba6 {[%emt 0:00:04]} 31. Qc6 {[%emt 0:00:13]}
Rf8 {[%emt 0:00:11]} 32. Bxe4 {[%emt 0:00:02]} Qxc4 {[%emt 0:00:04]} 33. Qxc4 {
[%emt 0:00:02]} Bxc4 {[%emt 0:00:00]} 34. Rb1 {[%emt 0:00:06]} b5 {[%emt 0:00:
01]} 35. f4 {[%emt 0:00:03]} Re8 {[%emt 0:00:02]} 36. Bc6 {[%emt 0:00:01]} Rb8
{[%emt 0:00:02]} 37. Rb4 {[%emt 0:00:03]} Kf8 {[%emt 0:00:03]} 38. Kf2 {
[%emt 0:00:01]} Ke7 {[%emt 0:00:00]} 39. Ke3 {[%emt 0:00:00]} Kd6 {[%emt 0:00:
01]} 40. Be4 {[%emt 0:00:04]} Kc5 {[%emt 0:00:01]} 41. Rb1 {[%emt 0:00:01]} Re8
{[%emt 0:00:01]} 42. Kf3 {[%emt 0:00:05]} f5 {[%emt 0:00:01]} 43. Bc2 {[%emt 0:
00:02]} Re2 {[%emt 0:00:02]} 44. Bb3 {[%emt 0:00:03]} Rxh2 {[%emt 0:00:02]} 45.
Bxc4 {[%emt 0:00:02]} bxc4 {[%emt 0:00:01]} 46. Ke3 {[%emt 0:00:03]} Rg2 {
[%emt 0:00:01]} 47. Kf3 {[%emt 0:00:01]} Ra2 {[%emt 0:00:02]} 48. Rb7 {[%emt 0:
00:02]} c3 {[%emt 0:00:01]} 49. Rc7+ {[%emt 0:00:01]} Kd4 {[%emt 0:00:01]} 50.
Rd7+ {[%emt 0:00:01]} Kc4 {[%emt 0:00:01]} 51. Rc7+ {[%emt 0:00:01]} Kb3 {
[%emt 0:00:01]} 52. Rb7+ {[%emt 0:00:01]} Kc2 {[%emt 0:00:00]} 53. Ke2 {
[%emt 0:00:02]} Ra8 {[%emt 0:00:03]} 54. Ke3 {[%emt 0:00:02]} Re8+ {[%emt 0:00:
02]} 55. Kd4 {[%emt 0:00:01]} Kd2 {[%emt 0:00:01]} 0-1

[Event "FIDE Women World Blitz 2021"]
[Site "Warsaw"]
[Date "2021.12.30"]
[Round "15.24"]
[White "Dworakowska, Joanna"]
[Black "Hryzlova, Sofiia"]
[Result "1-0"]
[ECO "A04"]
[WhiteElo "2228"]
[BlackElo "2097"]
[Annotator "NA"]
[PlyCount "75"]
[EventDate "2021.12.29"]
[EventType "swiss"]
[EventCountry "POL"]
[Tiebreak "Cut1 Buchholz"]
[SourceTitle "playchess.com"]
[Source "ChessBase"]
[SourceQuality "1"]
[TimeControl "180+2"]

1. e4 {[%emt 0:00:01]} c5 {[%emt 0:00:01]} 2. Nf3 {[%emt 0:00:01]} d6 {[%emt 0:
00:01]} 3. g3 {[%emt 0:00:01]} Nc6 {[%emt 0:00:01]} 4. Bg2 {[%emt 0:00:01]} g6
{[%emt 0:00:01]} 5. O-O {[%emt 0:00:02]} Bg7 {[%emt 0:00:02]} 6. c3 {[%emt 0:
00:03]} e5 {[%emt 0:00:01]} 7. d3 {[%emt 0:00:13]} Nge7 {[%emt 0:00:02]} 8. Be3
{[%emt 0:00:05]} O-O {[%emt 0:00:09]} 9. Qc1 {[%emt 0:00:03]} Rb8 {[%emt 0:00:
04]} 10. Nbd2 {[%emt 0:00:21]} b5 {[%emt 0:00:05]} 11. Re1 {[%emt 0:00:02]} a5
{[%emt 0:00:05]} 12. h3 {[%emt 0:00:01]} Ba6 {[%emt 0:00:13]} 13. Nf1 {[%emt 0:
00:04]} b4 {[%emt 0:00:06]} 14. c4 {[%emt 0:00:01]} Bc8 {[%emt 0:00:07]} 15.
Bh6 {[%emt 0:00:11]} f6 {[%emt 0:00:35]} 16. Bxg7 {[%emt 0:00:07]} Kxg7 {
[%emt 0:00:02]} 17. Ne3 {[%emt 0:00:06]} Be6 {[%emt 0:00:05]} 18. Kh2 {[%emt 0:
00:20]} Qd7 {[%emt 0:00:03]} 19. Rh1 {[%emt 0:00:02]} Ng8 {[%emt 0:00:07]} 20.
Qd2 {[%emt 0:00:10]} a4 {[%emt 0:00:15]} 21. Raf1 {[%emt 0:00:03]} Nd4 {
[%emt 0:00:04]} 22. Ne1 {[%emt 0:00:03]} f5 {[%emt 0:00:12]} 23. f4 {[%emt 0:
00:04]} Nh6 {[%emt 0:00:40]} 24. Kg1 {[%emt 0:00:02]} Rf7 {[%emt 0:00:07]} 25.
exf5 {[%emt 0:00:21]} Nhxf5 {[%emt 0:00:08]} 26. Nxf5+ {[%emt 0:00:05]} Nxf5 {
[%emt 0:00:03]} 27. Kh2 {[%emt 0:00:02]} exf4 {[%emt 0:00:05]} 28. Rxf4 {
[%emt 0:00:02]} d5 {[%emt 0:00:04]} 29. Qe2 {[%emt 0:00:10]} dxc4 {[%emt 0:00:
05]} 30. Qe5+ {[%emt 0:00:01]} Rf6 {[%emt 0:00:09]} 31. Qxb8 {[%emt 0:00:01]}
cxd3 {[%emt 0:00:02]} 32. Nf3 {[%emt 0:00:05]} Bxa2 {[%emt 0:00:08]} 33. Rd1 {
[%emt 0:00:10]} c4 {[%emt 0:00:01]} 34. Qxb4 {[%emt 0:00:03]} Ne3 {[%emt 0:00:
02]} 35. Rxf6 {[%emt 0:00:06]} Nxd1 {[%emt 0:00:03]} 36. Rd6 {[%emt 0:00:05]}
Qf7 {[%emt 0:00:02]} 37. Rb6 {[%emt 0:00:05]} Kh6 {[%emt 0:00:03]} 38. Qd2+ {
[%emt 0:00:05]} 1-0

[Event "FIDE Women World Blitz 2021"]
[Site "Warsaw"]
[Date "2021.12.30"]
[Round "15.25"]
[White "Loskutova, Viktoriya"]
[Black "Efimenko, Maria"]
[Result "1/2-1/2"]
[ECO "B06"]
[WhiteElo "2195"]
[BlackElo "2207"]
[Annotator "NA"]
[PlyCount "55"]
[EventDate "2021.12.29"]
[EventType "swiss"]
[EventCountry "POL"]
[Tiebreak "Cut1 Buchholz"]
[SourceTitle "playchess.com"]
[Source "ChessBase"]
[SourceQuality "1"]
[TimeControl "180+2"]

1. e4 {[%emt 0:00:02]} g6 {[%emt 0:00:02]} 2. d4 {[%emt 0:00:01]} d6 {[%emt 0:
00:01]} 3. Nc3 {[%emt 0:00:02]} Bg7 {[%emt 0:00:01]} 4. f4 {[%emt 0:00:01]} Nc6
{[%emt 0:00:02]} 5. Nf3 {[%emt 0:00:02]} Bg4 {[%emt 0:00:02]} 6. d5 {[%emt 0:
00:46]} Nd4 {[%emt 0:00:06]} 7. Be2 {[%emt 0:00:02]} Nxe2 {[%emt 0:00:06]} 8.
Qxe2 {[%emt 0:00:02]} c6 {[%emt 0:00:22]} 9. h3 {[%emt 0:00:17]} Bd7 {[%emt 0:
00:08]} 10. O-O {[%emt 0:00:05]} Nf6 {[%emt 0:00:05]} 11. dxc6 {[%emt 0:00:26]}
Bxc6 {[%emt 0:00:18]} 12. e5 {[%emt 0:00:10]} Nh5 {[%emt 0:00:00]} 13. Qe1 {
[%emt 0:00:17]} Bxf3 {[%emt 0:00:23]} 14. Rxf3 {[%emt 0:00:03]} dxe5 {[%emt 0:
00:01]} 15. fxe5 {[%emt 0:00:03]} Qd4+ {[%emt 0:00:01]} 16. Kh1 {[%emt 0:00:28]
} Bxe5 {[%emt 0:00:28]} 17. Be3 {[%emt 0:00:07]} Qc4 {[%emt 0:00:19]} 18. Bf2 {
[%emt 0:00:29]} Bg7 {[%emt 0:00:40]} 19. Rd1 {[%emt 0:00:07]} O-O {[%emt 0:00:
03]} 20. Qxe7 {[%emt 0:00:03]} Rfe8 {[%emt 0:00:07]} 21. Qxb7 {[%emt 0:00:02]}
Rab8 {[%emt 0:00:00]} 22. Qxa7 {[%emt 0:00:02]} Rxb2 {[%emt 0:00:02]} 23. Nd5 {
[%emt 0:00:04]} Rf8 {[%emt 0:00:19]} 24. Ne7+ {[%emt 0:00:01]} Kh8 {[%emt 0:00:
02]} 25. Bd4 {[%emt 0:00:01]} Bxd4 {[%emt 0:00:04]} 26. Qxd4+ {[%emt 0:00:02]}
Qxd4 {[%emt 0:00:01]} 27. Rxd4 {[%emt 0:00:01]} Rxa2 {[%emt 0:00:02]} 28. Rc4 {
[%emt 0:00:02]} 1/2-1/2

[Event "FIDE Women World Blitz 2021"]
[Site "Warsaw"]
[Date "2021.12.30"]
[Round "15.26"]
[White "Maisuradze, Nino"]
[Black "Nomin-Erdene, Davaademberel"]
[Result "1-0"]
[ECO "A80"]
[WhiteElo "2175"]
[BlackElo "2188"]
[Annotator "NA"]
[PlyCount "72"]
[EventDate "2021.12.29"]
[EventType "swiss"]
[EventCountry "POL"]
[Tiebreak "Cut1 Buchholz"]
[SourceTitle "playchess.com"]
[Source "ChessBase"]
[SourceQuality "1"]
[TimeControl "180+2"]

1. d4 {[%emt 0:00:00]} f5 {[%emt 0:00:00]} 2. Nf3 {[%emt 0:00:03]} Nf6 {
[%emt 0:00:01]} 3. Bg5 {[%emt 0:00:04]} Ne4 {[%emt 0:00:07]} 4. Bf4 {[%emt 0:
00:04]} g6 {[%emt 0:00:01]} 5. Be5 {[%emt 0:00:03]} Nf6 {[%emt 0:00:02]} 6.
Bxf6 exf6 {[%emt 0:00:01]} 7. e3 {[%emt 0:00:09]} d5 {[%emt 0:00:02]} 8. Bd3 {
[%emt 0:00:01]} Be6 {[%emt 0:00:01]} 9. Nc3 {[%emt 0:00:11]} Qd7 {[%emt 0:00:
02]} 10. Ne2 {[%emt 0:00:03]} Nc6 {[%emt 0:00:03]} 11. c3 {[%emt 0:00:02]} Ne7
{[%emt 0:00:11]} 12. Qc2 {[%emt 0:00:15]} Nc8 {[%emt 0:00:03]} 13. h4 {[%emt 0:
00:12]} Nd6 {[%emt 0:00:23]} 14. h5 {[%emt 0:00:05]} g5 {[%emt 0:00:09]} 15.
Nd2 {[%emt 0:00:15]} O-O-O {[%emt 0:00:06]} 16. O-O-O {[%emt 0:00:08]} Ne4 {
[%emt 0:00:04]} 17. Rdf1 {[%emt 0:00:12]} Bh6 {[%emt 0:00:42]} 18. Kb1 {
[%emt 0:00:07]} Kb8 {[%emt 0:00:15]} 19. Nb3 {[%emt 0:00:01]} b6 {[%emt 0:00:
03]} 20. c4 {[%emt 0:00:21]} dxc4 {[%emt 0:00:20]} 21. Bxc4 {[%emt 0:00:01]}
Bxc4 {[%emt 0:00:02]} 22. Qxc4 {[%emt 0:00:01]} f4 {[%emt 0:00:01]} 23. Qc2 {
[%emt 0:00:11]} Rhe8 {[%emt 0:00:01]} 24. f3 {[%emt 0:00:06]} Nd6 {[%emt 0:00:
23]} 25. e4 {[%emt 0:00:01]} Bf8 {[%emt 0:00:31]} 26. Rc1 {[%emt 0:00:01]} Rc8
{[%emt 0:00:03]} 27. Rhd1 {[%emt 0:00:01]} Qb5 {[%emt 0:00:04]} 28. Nc3 {
[%emt 0:00:02]} Qc4 {[%emt 0:00:03]} 29. Qf2 {[%emt 0:00:08]} c6 {[%emt 0:00:
03]} 30. Nd5 {[%emt 0:00:05]} Qa6 {[%emt 0:00:04]} 31. Nxf6 {[%emt 0:00:02]}
Re7 {[%emt 0:00:00]} 32. Ng4 {[%emt 0:00:18]} Bg7 {[%emt 0:00:02]} 33. h6 {
[%emt 0:00:04]} Bh8 {[%emt 0:00:01]} 34. Qc2 {[%emt 0:00:03]} Nb5 {[%emt 0:00:
03]} 35. e5 {[%emt 0:00:09]} Qb7 {[%emt 0:00:08]} 36. a4 {[%emt 0:00:06]} Nc7 {
[%emt 0:00:03]} 1-0

[Event "FIDE Women World Blitz 2021"]
[Site "Warsaw"]
[Date "2021.12.30"]
[Round "15.27"]
[White "Sandu, Mihaela"]
[Black "Fernandez, Maria Florencia"]
[Result "0-1"]
[ECO "B07"]
[WhiteElo "2244"]
[BlackElo "2184"]
[Annotator "NA"]
[PlyCount "90"]
[EventDate "2021.12.29"]
[EventType "swiss"]
[EventCountry "POL"]
[Tiebreak "Cut1 Buchholz"]
[SourceTitle "playchess.com"]
[Source "ChessBase"]
[SourceQuality "1"]
[TimeControl "180+2"]

1. e4 {[%emt 0:00:01]} d6 {[%emt 0:00:01]} 2. d4 {[%emt 0:00:03]} Nf6 {[%emt 0:
00:01]} 3. Nc3 {[%emt 0:00:00]} g6 {[%emt 0:00:01]} 4. g3 {[%emt 0:00:01]} Bg7
{[%emt 0:00:01]} 5. Bg2 {[%emt 0:00:01]} O-O {[%emt 0:00:01]} 6. Nge2 {[%emt 0:
00:08]} c6 {[%emt 0:00:05]} 7. O-O {[%emt 0:00:05]} Nbd7 {[%emt 0:00:02]} 8. f4
{[%emt 0:00:03]} e5 {[%emt 0:00:02]} 9. h3 {[%emt 0:00:19]} Re8 {[%emt 0:00:12]
} 10. Kh2 {[%emt 0:00:16]} Qc7 {[%emt 0:00:14]} 11. dxe5 {[%emt 0:00:07]} dxe5
{[%emt 0:00:01]} 12. f5 {[%emt 0:00:13]} b5 {[%emt 0:00:25]} 13. a3 {[%emt 0:
00:10]} a5 {[%emt 0:00:08]} 14. Be3 {[%emt 0:00:04]} Nb6 {[%emt 0:00:08]} 15.
b3 {[%emt 0:00:05]} Bb7 {[%emt 0:00:09]} 16. Qe1 {[%emt 0:00:02]} b4 {[%emt 0:
00:11]} 17. Qf2 {[%emt 0:00:02]} Nbd7 {[%emt 0:00:05]} 18. axb4 {[%emt 0:00:04]
} axb4 {[%emt 0:00:01]} 19. Rxa8 {[%emt 0:00:08]} Rxa8 {[%emt 0:00:04]} 20. Na4
{[%emt 0:00:01]} c5 {[%emt 0:00:15]} 21. fxg6 {[%emt 0:00:03]} fxg6 {[%emt 0:
00:19]} 22. Bxc5 {[%emt 0:00:37]} Bc6 {[%emt 0:00:14]} 23. Bxb4 {[%emt 0:00:07]
} Bxa4 {[%emt 0:00:03]} 24. bxa4 {[%emt 0:00:01]} Qxc2 {[%emt 0:00:05]} 25. a5
{[%emt 0:00:09]} Qb3 {[%emt 0:00:36]} 26. Qe1 {[%emt 0:00:08]} Rb8 {[%emt 0:00:
05]} 27. Bc3 {[%emt 0:00:06]} Rc8 {[%emt 0:00:13]} 28. a6 {[%emt 0:00:04]} Ra8
{[%emt 0:00:04]} 29. Qa1 {[%emt 0:00:02]} Qb5 {[%emt 0:00:01]} 30. Qa2+ {
[%emt 0:00:07]} Kh8 {[%emt 0:00:03]} 31. Rb1 {[%emt 0:00:02]} Qxa6 {[%emt 0:00:
01]} 32. Qxa6 {[%emt 0:00:05]} Rxa6 {[%emt 0:00:01]} 33. Nc1 {[%emt 0:00:06]}
Rc6 {[%emt 0:00:02]} 34. Ba5 {[%emt 0:00:04]} Rc2 {[%emt 0:00:03]} 35. Kg1 {
[%emt 0:00:05]} Bh6 {[%emt 0:00:06]} 36. Nb3 {[%emt 0:00:02]} Be3+ {[%emt 0:00:
02]} 37. Kh2 {[%emt 0:00:04]} Nh5 {[%emt 0:00:04]} 38. Rf1 {[%emt 0:00:04]}
Ndf6 {[%emt 0:00:02]} 39. Be1 {[%emt 0:00:03]} Nxe4 {[%emt 0:00:02]} 40. Rf8+ {
[%emt 0:00:03]} Kg7 {[%emt 0:00:01]} 41. Re8 {[%emt 0:00:01]} Re2 {[%emt 0:00:
04]} 42. Bb4 {[%emt 0:00:02]} Nexg3 {[%emt 0:00:07]} 43. Be7 {[%emt 0:00:04]}
Kf7 {[%emt 0:00:00]} 44. Rh8 {[%emt 0:00:04]} Nf1+ {[%emt 0:00:00]} 45. Kh1 {
[%emt 0:00:02]} Nhg3# {[%emt 0:00:01]} 0-1